bitfinex/quotes_ETHUSD_20240718
["timestamp","ask_amount","ask_price","bid_price","bid_amount"]
[1721282596932,2.91523,3430.3,3429.7,0.03248298]
[1721282600733,2.91505,3430.5,3429.7,0.03248298]
[1721282601035,0.71850101,3430.4,3429.8,2.263]
[1721282601241,2.91513,3430.4,3429.8,2.263]
[1721282601437,2.91513,3430.4,3429.9,0.03196282]
[1721282601747,0.291513,3430.3,3429.9,0.03196282]
[1721282603246,3.206703,3430.3,3429.9,0.03196282]
[1721282606550,2.91529,3430.2,3429.9,0.03196282]
[1721282606725,2.91553,3430.0,3429.1,2.2801]
[1721282606922,2.9156,3429.9,3429.1,2.2801]
[1721282607122,2.91562,3429.8,3429.1,2.2801]
[1721282608232,2.91581,3429.6,3429.1,2.2801]
[1721282609431,2.91565,3429.8,3429.1,2.2801]
[1721282610159,3.7696033,3430.0,3429.1,2.2801]
[1721282610362,0.66848933,3429.9,3429.1,2.2801]
[1721282612034,2.91529,3430.2,3429.2,2.91612]
[1721282612348,2.91529,3430.2,3429.3,2.4373]
[1721282612661,0.291513,3430.3,3429.4,2.91593]
[1721282612836,2.91515,3430.4,3429.4,2.91593]
[1721282613039,2.91521,3430.3,3429.4,2.91593]
[1721282617448,2.91529,3430.2,3429.4,2.91593]
[1721282617635,2.91536,3430.1,3429.3,5.3533]
[1721282617841,3.498408,3430.1,3429.3,5.3533]
[1721282618167,2.91536,3430.1,3429.4,0.03209525]
[1721282618887,2.91522,3430.3,3429.4,2.94799525]
[1721282619360,2.91528,3430.2,3429.4,2.94799525]
[1721282620642,2.91528,3430.2,3429.5,2.2879]
[1721282621050,2.91528,3430.2,3429.6,0.03201797]
[1721282621662,2.91528,3430.2,3429.7,2.2578]
[1721282622258,2.91528,3430.2,3429.8,0.03201797]
[1721282622548,2.91528,3430.2,3429.7,2.2578]
[1721282622769,2.91528,3430.2,3429.9,0.03201797]
[1721282622972,2.91528,3430.2,3429.7,2.2578]
[1721282623147,2.91528,3430.2,3430.0,0.03201797]
[1721282623358,2.91528,3430.2,3429.7,2.2578]
[1721282623565,2.91512,3430.4,3430.1,0.03201797]
[1721282623864,3.498207,3430.3,3429.7,2.2578]
[1721282624764,3.498207,3430.3,3429.8,0.03200325]
[1721282625295,2.9152,3430.3,3429.7,2.2578]
[1721282625788,2.9152,3430.3,3429.8,0.03200325]
[1721282625985,2.9152,3430.3,3429.7,2.2578]
[1721282626164,2.91507,3430.5,3429.9,0.03200325]
[1721282626355,2.91511,3430.4,3429.7,2.2578]
[1721282626556,2.91511,3430.4,3430.0,0.03200325]
[1721282626753,0.666306,3430.3,3429.7,2.2578]
[1721282627066,2.91511,3430.4,3430.1,0.03200325]
[1721282627269,2.91511,3430.4,3429.7,2.2578]
[1721282627449,2.91511,3430.4,3430.2,0.03200325]
[1721282627991,2.91511,3430.4,3430.3,0.03200325]
[1721282628193,2.91511,3430.4,3429.7,2.2578]
[1721282628484,2.91511,3430.4,3430.3,0.03200325]
[1721282628685,3.581416,3430.4,3429.7,2.2578]
[1721282629199,3.581416,3430.4,3429.8,0.03197015]
[1721282629899,4.414416,3430.4,3429.8,0.03197015]
[1721282630485,3.581416,3430.4,3429.8,0.03197015]
[1721282631560,0.71850872,3430.3,3429.8,0.03197015]
[1721282631761,0.80478747,3430.3,3429.7,2.2578]
[1721282632097,0.80478747,3430.3,3429.9,0.03188924]
[1721282632303,3.71999747,3430.3,3429.7,2.2578]
[1721282632470,3.71999747,3430.3,3430.0,0.03188924]
[1721282632658,3.71999747,3430.3,3429.7,2.2578]
[1721282633166,3.71999747,3430.3,3429.8,0.03189292]
[1721282633374,0.37199975,3430.2,3429.7,2.2578]
[1721282633589,0.37199975,3430.2,3429.9,0.03189292]
[1721282633771,0.37199975,3430.2,3429.7,2.2578]
[1721282633963,0.37199975,3430.2,3430.0,0.03189292]
[1721282634190,0.37199975,3430.2,3429.7,2.2578]
[1721282634392,3.71999747,3430.3,3430.1,0.03189292]
[1721282634755,3.71999747,3430.3,3429.7,2.2578]
[1721282634960,3.71999747,3430.3,3429.8,0.03189292]
[1721282635186,3.71999747,3430.3,3429.7,2.2578]
[1721282635402,0.80478747,3430.3,3429.9,0.03189292]
[1721282635558,0.80478747,3430.3,3429.7,2.2578]
[1721282635559,0.80478747,3430.3,3429.7,3.0908]
[1721282635759,3.74795,3430.6,3429.8,0.03189292]
[1721282636073,0.71845449,3430.5,3429.8,0.03189292]
[1721282636285,0.71845449,3430.4,3429.8,0.03189292]
[1721282636608,0.71844064,3430.3,3429.8,0.03189292]
[1721282636806,2.91515,3430.4,3429.7,3.0908]
[1721282636979,0.71844099,3430.3,3429.9,0.03188924]
[1721282637310,2.91515,3430.4,3429.7,3.0908]
[1721282637512,0.71843108,3430.3,3430.0,2.4114]
[1721282637673,7.34,3431.0,3430.2,0.833]
[1721282637674,10.25461,3431.0,3430.2,0.833]
[1721282637873,0.7182662,3430.9,3430.4,0.833]
[1721282638173,2.91447,3431.2,3430.4,0.833]
[1721282638404,0.71815085,3431.1,3430.5,0.03183407]
[1721282638604,3.497353,3431.2,3430.5,0.03183407]
[1721282638804,0.71814369,3431.1,3430.6,0.833]
[1721282638983,0.71814369,3431.0,3430.6,0.86471224]
[1721282639185,3.497353,3431.2,3430.6,0.86471224]
[1721282639514,0.71814872,3431.1,3430.6,0.86471224]
[1721282639805,3.497353,3431.2,3430.6,0.86471224]
[1721282640116,0.71815147,3431.1,3430.6,0.86471224]
[1721282640287,2.91447,3431.2,3430.6,0.86471224]
[1721282640486,0.71814002,3431.1,3430.7,2.2778]
[1721282640817,10.34,3431.7,3431.0,3.74757]
[1721282640818,7.34,3431.7,3431.0,3.74757]
[1721282641017,2.48,3432.4,3431.0,0.833]
[1721282641018,0.71794562,3431.6,3431.0,0.833]
[1721282641213,1.08113418,3431.5,3431.1,0.03149529]
[1721282641389,2.91394,3431.8,3431.0,0.833]
[1721282641712,0.71795392,3431.7,3431.2,0.833]
[1721282641884,2.91394,3431.8,3431.2,0.833]
[1721282642078,0.71795295,3431.7,3431.3,0.03149529]
[1721282642274,2.91394,3431.8,3431.2,0.833]
[1721282642612,3.496709,3431.8,3431.3,0.03149529]
[1721282642977,3.496709,3431.8,3431.0,0.833]
[1721282643598,2.914,3431.7,3430.9,5.19245]
[1721282643837,3.74753,3431.1,3430.5,2.2992]
[1721282644044,3.74753,3431.1,3429.2,8.20957344]
[1721282644045,2.91485,3430.8,3430.1,2.2992]
[1721282644342,2.91486,3430.7,3430.1,2.2992]
[1721282645412,2.91496,3430.6,3430.1,2.2992]
[1721282645757,0.582981,3430.5,3430.1,2.2992]
[1721282646129,2.91477,3430.8,3430.1,3.1322]
[1721282646328,2.91477,3430.8,3430.1,2.2992]
[1721282647157,2.91495,3430.6,3430.1,2.2992]
[1721282647473,2.91495,3430.6,3429.5,2.91587]
[1721282647474,2.91513,3430.4,3429.6,2.4622]
[1721282647648,3.498138,3430.4,3429.6,2.4622]
[1721282648255,3.498138,3430.4,3429.7,0.03001483]
[1721282648437,2.9152,3430.3,3429.7,0.03001483]
[1721282648634,2.91529,3430.2,3429.7,0.03001483]
[1721282648849,0.583008,3430.4,3429.7,0.03001483]
[1721282648850,2.91537,3430.1,3429.7,0.03001483]
[1721282649047,0.583056,3430.0,3429.7,0.03001483]
[1721282649227,0.583056,3430.0,3429.2,5.30252]
[1721282649421,3.498516,3430.0,3429.8,0.03015455]
[1721282649614,0.583056,3430.0,3429.2,2.3864]
[1721282649813,3.498506,3430.0,3429.9,0.03019867]
[1721282650042,2.91564,3429.8,3429.2,2.3864]
[1721282650471,2.91594,3429.5,3429.3,0.03020235]
[1721282650768,5.8319,3429.5,3428.8,2.2822]
[1721282651057,5.8319,3429.5,3428.9,0.03029062]
[1721282651655,2.91594,3429.5,3428.9,0.03029062]
[1721282651951,2.91594,3429.5,3428.8,2.2822]
[1721282652115,2.91594,3429.5,3428.9,0.03029062]
[1721282652317,2.91596,3429.4,3428.9,0.03029062]
[1721282655029,3.499133,3429.4,3428.9,0.03029062]
[1721282655359,3.499133,3429.4,3428.2,2.3076]
[1721282655660,2.91621,3429.1,3428.3,0.03120999]
[1721282656359,5.83249,3429.1,3428.3,0.03120999]
[1721282657837,2.9163,3429.0,3428.3,0.03120999]
[1721282658849,2.91646,3428.9,3428.3,0.03120999]
[1721282659049,2.91648,3428.8,3428.3,0.03120999]
[1721282659474,2.91659,3428.7,3428.2,2.3076]
[1721282660067,2.91659,3428.7,3428.3,0.03131302]
[1721282660475,2.91659,3428.7,3428.2,2.3076]
[1721282660637,2.4026,3429.2,3428.4,0.03131302]
[1721282660836,2.4026,3429.2,3428.2,2.3076]
[1721282660837,2.91685,3428.4,3428.2,2.3076]
[1721282661143,2.91685,3428.4,3428.3,0.03131302]
[1721282661473,3.15648,3429.1,3427.8,2.3975]
[1721282661474,2.91692,3428.3,3427.8,2.3975]
[1721282661973,2.91692,3428.3,3427.9,0.03131302]
[1721282662445,2.91699,3428.2,3427.9,0.03131302]
[1721282662777,2.91715,3428.0,3427.4,2.2948]
[1721282662950,2.91715,3428.0,3427.5,0.03042935]
[1721282663470,2.91699,3428.2,3427.6,2.2948]
[1721282663978,2.91699,3428.2,3427.7,0.03042935]
[1721282664135,2.91699,3428.2,3427.6,2.2948]
[1721282664332,2.91699,3428.2,3427.7,0.03042935]
[1721282664551,2.91699,3428.2,3427.6,2.2948]
[1721282664746,2.91699,3428.2,3427.7,0.03042935]
[1721282664951,2.91699,3428.2,3427.6,2.83929729]
[1721282665275,2.91699,3428.2,3427.7,0.03042935]
[1721282665640,2.91699,3428.2,3427.6,2.83929729]
[1721282666162,2.91699,3428.2,3427.7,0.03042935]
[1721282666479,2.91699,3428.2,3427.6,2.83929729]
[1721282666942,2.91699,3428.2,3427.7,0.03042935]
[1721282667137,2.91699,3428.2,3427.6,2.83929729]
[1721282667363,2.91707,3428.1,3427.7,0.03074952]
[1721282667676,2.91707,3428.1,3427.6,2.2948]
[1721282667973,5.8342,3428.1,3427.6,2.2948]
[1721282668172,5.8342,3428.1,3427.7,0.03074952]
[1721282668479,2.91707,3428.1,3427.6,2.2948]
[1721282668779,2.91715,3428.0,3427.6,2.54753229]
[1721282668949,2.91715,3428.0,3427.7,0.03074952]
[1721282669152,2.91715,3428.0,3427.6,2.2948]
[1721282669350,2.91732,3427.8,3427.7,0.03074952]
[1721282669552,2.91732,3427.8,3427.6,2.2948]
[1721282669748,2.91732,3427.8,3427.7,0.03074952]
[1721282669942,2.91732,3427.8,3427.6,2.2948]
[1721282670137,2.91732,3427.8,3427.7,0.03074952]
[1721282670338,2.91732,3427.8,3427.6,2.2948]
[1721282670635,5.83464,3427.8,3427.7,0.03074952]
[1721282670853,6.418104,3427.8,3427.7,0.03074952]
[1721282671047,2.91756,3427.6,3427.3,2.3632]
[1721282672576,2.91759,3427.5,3427.3,2.3632]
[1721282672788,5.83523,3427.5,3427.3,2.3632]
[1721282674068,2.91759,3427.5,3427.3,2.3632]
[1721282676338,5.83488,3427.7,3427.4,0.02974918]
[1721282676538,2.91751,3427.6,3427.3,2.3632]
[1721282676780,2.91751,3427.6,3427.4,0.02974918]
[1721282676946,2.91757,3427.5,3427.4,0.02974918]
[1721282677273,2.91757,3427.5,3427.3,2.3632]
[1721282677774,2.91757,3427.5,3427.4,0.02974918]
[1721282677978,2.91757,3427.5,3427.3,2.3632]
[1721282678182,2.91757,3427.5,3427.4,0.02974918]
[1721282678346,2.91757,3427.5,3427.3,2.3632]
[1721282678547,2.91757,3427.5,3427.4,0.02974918]
[1721282678746,2.91757,3427.5,3427.3,2.3632]
[1721282678946,2.91757,3427.5,3427.4,0.02974918]
[1721282679580,2.91745,3427.7,3427.4,0.02974918]
[1721282679880,2.91747,3427.7,3427.4,0.02974918]
[1721282680445,2.91751,3427.6,3427.4,0.02974918]
[1721282683092,2.91757,3427.5,3427.4,0.02974918]
[1721282686286,2.91745,3427.7,3427.4,0.02974918]
[1721282687423,2.9175,3427.6,3427.4,0.02974918]
[1721282687776,2.9175,3427.6,3427.0,2.448]
[1721282688103,2.9175,3427.6,3427.1,0.76647665]
[1721282688283,2.91725,3427.9,3427.5,0.835]
[1721282688284,2.91736,3427.8,3427.5,0.835]
[1721282688819,2.91736,3427.8,3427.6,0.02985965]
[1721282689014,2.9174,3427.7,3427.6,0.02985965]
[1721282689215,2.9174,3427.7,3427.5,0.835]
[1721282689418,2.9174,3427.7,3427.6,0.02985965]
[1721282693335,2.91733,3427.8,3427.6,0.02985965]
[1721282693537,2.91726,3427.9,3427.6,2.45805965]
[1721282693683,7.34,3428.3,3427.8,0.835]
[1721282693684,2.91707,3428.1,3427.8,0.835]
[1721282693891,7.34,3428.3,3427.8,0.835]
[1721282694123,5.91699,3428.2,3427.8,0.835]
[1721282694316,5.91699,3428.2,3427.9,0.02983385]
[1721282694627,2.91699,3428.2,3427.8,0.835]
[1721282694997,2.91699,3428.2,3427.9,0.02983385]
[1721282695943,5.91682,3428.4,3427.9,0.02983385]
[1721282696232,2.9169,3428.3,3427.9,0.02983385]
[1721282696934,3.322663,3428.2,3427.1,2.4479]
[1721282697129,5.83412,3428.1,3428.0,0.02983385]
[1721282697430,2.91743,3427.7,3427.2,0.835]
[1721282698026,2.91743,3427.7,3427.3,0.02991852]
[1721282700015,2.91766,3427.4,3427.3,0.02991852]
[1721282700344,2.91766,3427.4,3426.8,7.3]
[1721282700497,2.91766,3427.4,3427.3,0.02794033]
[1721282700698,2.91782,3427.3,3426.8,7.3]
[1721282701019,2.91808,3426.9,3426.4,2.4482]
[1721282701755,2.91817,3426.8,3426.4,2.4482]
[1721282701927,2.91803,3427.0,3426.4,2.4482]
[1721282702315,2.91783,3427.2,3426.4,2.4482]
[1721282703052,2.91765,3427.5,3426.4,2.4482]
[1721282703053,2.91768,3427.4,3426.6,2.2747]
[1721282703212,2.91768,3427.4,3426.7,0.52515618]
[1721282703842,2.91776,3427.3,3426.7,0.52515618]
[1721282704538,2.91784,3427.2,3426.6,2.2747]
[1721282708306,2.91784,3427.2,3426.7,0.0272371]
[1721282709005,2.91766,3427.4,3426.7,0.0272371]
[1721282710653,2.91776,3427.3,3426.7,0.0272371]
[1721282711535,2.91784,3427.2,3426.7,0.0272371]
[1721282712243,0.58355,3427.2,3426.3,2.3935]
[1721282712439,2.91809,3426.9,3426.8,0.0272371]
[1721282712646,2.91809,3426.9,3426.3,2.3935]
[1721282712805,2.91809,3426.9,3426.8,0.02751673]
[1721282713006,2.91809,3426.9,3426.3,2.3935]
[1721282713208,2.91809,3426.9,3426.4,0.02751673]
[1721282716436,2.91818,3426.8,3426.4,0.02751673]
[1721282717720,2.91825,3426.7,3426.4,0.02751673]
[1721282717921,2.91834,3426.6,3426.4,0.02751673]
[1721282718857,2.91834,3426.6,3426.0,0.0196]
[1721282719059,1.257597,3427.2,3426.5,0.02751673]
[1721282719374,2.3184,3427.0,3426.0,0.0196]
[1721282719535,0.71987345,3426.9,3426.0,0.0196]
[1721282719736,2.3184,3427.0,3426.1,0.02751673]
[1721282719737,2.91866,3426.3,3426.1,0.02751673]
[1721282722475,2.91868,3426.2,3426.1,0.02751673]
[1721282728372,5.83736,3426.2,3426.1,0.02751673]
[1721282728550,6.740886,3426.2,3426.1,0.02751673]
[1721282728757,2.91877,3426.1,3426.0,0.0196]
[1721282729886,2.91868,3426.2,3426.0,0.0196]
[1721282731669,2.91877,3426.1,3426.0,0.0196]
[1721282734484,5.20297,3426.1,3426.0,0.0196]
[1721282734784,9.017405,3426.1,3426.0,0.0196]
[1721282739654,6.733205,3426.1,3426.0,0.0196]
[1721282743874,6.733205,3426.1,3424.1,0.45761824]
[1721282743875,3.751765,3426.1,3424.1,0.45761824]
[1721282744201,3.751765,3426.1,3423.7,3.54764035]
[1721282744202,3.75471,3425.0,3423.9,3.75563]
[1721282744372,3.75471,3425.0,3424.4,2.40586544]
[1721282744576,2.91971,3425.0,3424.4,2.40586544]
[1721282745374,2.91981,3424.9,3424.4,2.40586544]
[1721282749331,5.83967,3424.9,3424.4,2.40586544]
[1721282749477,2.91981,3424.9,3424.4,2.40586544]
[1721282750324,2.91988,3424.8,3424.4,2.40586544]
[1721282755321,2.91943,3425.4,3424.5,2.92011]
[1721282755521,2.91945,3425.3,3424.5,2.92011]
[1721282755722,2.91945,3425.3,3424.6,0.0642083]
[1721282755924,2.91945,3425.3,3424.6,0.6364539]
[1721282756122,2.91969,3425.1,3424.6,0.0642083]
[1721282756453,2.91969,3425.1,3424.4,2.59036392]
[1721282756624,2.91969,3425.1,3424.7,0.0642083]
[1721282756833,2.91969,3425.1,3424.4,2.59036392]
[1721282757120,2.91969,3425.1,3424.8,0.0642083]
[1721282757320,2.91969,3425.1,3424.4,2.59036392]
[1721282757523,2.91969,3425.1,3424.9,0.0642083]
[1721282757736,2.91969,3425.1,3424.4,2.59036392]
[1721282757940,2.91969,3425.1,3425.0,0.0642083]
[1721282758106,2.91969,3425.1,3424.4,2.335]
[1721282758436,2.91969,3425.1,3425.0,0.0642083]
[1721282758623,2.91969,3425.1,3424.4,2.335]
[1721282758800,2.91969,3425.1,3425.0,0.0642083]
[1721282759003,2.91969,3425.1,3424.4,2.87530238]
[1721282759239,2.91969,3425.1,3425.0,0.0642083]
[1721282759721,2.91973,3425.0,3424.4,2.335]
[1721282760127,2.91973,3425.0,3424.5,0.0642083]
[1721282762418,2.91973,3425.0,3424.5,0.61094351]
[1721282763121,5.83915,3425.2,3424.5,0.61094351]
[1721282763364,2.91955,3425.2,3424.5,0.61094351]
[1721282763661,2.4323,3426.0,3424.6,2.3682]
[1721282764022,2.91971,3425.0,3424.7,0.06417889]
[1721282764564,2.91981,3424.9,3424.7,0.06417889]
[1721282764760,2.91981,3424.9,3424.3,0.1477738]
[1721282764924,2.91981,3424.9,3424.8,0.064087]
[1721282765125,2.91981,3424.9,3424.3,0.1477738]
[1721282765354,2.91981,3424.9,3424.8,0.064087]
[1721282765660,2.91981,3424.9,3424.3,0.1477738]
[1721282766158,2.91981,3424.9,3424.4,0.064087]
[1721282768062,10.25917,3425.7,3424.4,0.064087]
[1721282768063,2.91971,3425.0,3424.4,0.064087]
[1721282768256,2.91985,3424.9,3424.4,0.064087]
[1721282769957,2.91988,3424.8,3424.4,0.064087]
[1721282771470,2.92007,3424.6,3424.4,0.064087]
[1721282773655,5.84018,3424.6,3424.4,0.064087]
[1721282773832,2.92007,3424.6,3424.4,0.064087]
[1721282775383,2.92013,3424.5,3424.4,0.064087]
[1721282779282,2.91996,3424.7,3424.4,0.064087]
[1721282779782,2.9198,3424.9,3424.4,0.064087]
[1721282779976,2.91994,3424.8,3424.4,0.064087]
[1721282782116,2.91998,3424.7,3424.4,0.064087]
[1721282785716,2.91964,3425.1,3424.4,0.064087]
[1721282785935,7.34,3425.3,3424.5,2.4009]
[1721282786083,7.34,3425.3,3424.6,2.92002]
[1721282786281,7.34,3425.3,3424.7,2.4009]
[1721282786615,7.34,3425.3,3424.8,0.06006381]
[1721282786831,7.34,3425.3,3424.7,2.4009]
[1721282787127,7.34,3425.3,3424.9,0.06006381]
[1721282787435,7.34,3425.3,3424.8,0.06029172]
[1721282787579,7.34,3425.3,3424.8,0.56939375]
[1721282787774,7.34,3425.3,3424.9,0.06029172]
[1721282788580,7.34,3425.3,3424.7,5.32086]
[1721282788821,7.34,3425.3,3425.0,0.06029172]
[1721282789421,7.34,3425.3,3425.1,0.06029172]
[1721282789790,7.34,3425.3,3424.7,5.32086]
[1721282789991,7.34,3425.3,3425.2,0.06029172]
[1721282790192,7.34,3425.3,3424.7,5.32086]
[1721282790381,7.34,3425.3,3425.2,0.06029172]
[1721282790577,7.34,3425.3,3424.7,5.32086]
[1721282790779,7.34,3425.3,3425.2,0.06029172]
[1721282791085,2.91928,3425.5,3425.2,0.06029172]
[1721282791312,2.91928,3425.5,3424.7,5.32086]
[1721282791519,2.91928,3425.5,3424.7,6.144959]
[1721282791687,2.91928,3425.5,3424.8,0.06029172]
[1721282792083,2.91928,3425.5,3424.7,5.32086]
[1721282792299,2.91912,3425.7,3424.7,5.32086]
[1721282792505,2.91912,3425.7,3424.8,2.98015172]
[1721282792920,2.91921,3425.6,3424.8,2.98015172]
[1721282793806,2.91908,3425.8,3424.8,2.98015172]
[1721282794003,2.91908,3425.8,3424.9,2.4132]
[1721282794004,2.91913,3425.7,3424.9,2.4132]
[1721282794389,2.91913,3425.7,3425.0,0.06029172]
[1721282795606,0.291895,3425.8,3425.0,0.06029172]
[1721282795793,2.91895,3425.9,3425.0,0.06029172]
[1721282796187,2.91895,3425.9,3425.0,2.97997172]
[1721282796433,2.91903,3425.8,3425.0,2.97997172]
[1721282796610,2.91903,3425.8,3425.0,0.06029172]
[1721282797224,2.91913,3425.7,3425.0,0.06029172]
[1721282797408,3.502929,3425.7,3425.0,0.06029172]
[1721282798032,2.91938,3425.4,3425.0,0.06029172]
[1721282798807,2.91948,3425.3,3425.0,0.06029172]
[1721282799002,2.91948,3425.3,3424.6,2.4309]
[1721282799245,2.91948,3425.3,3425.1,0.05983955]
[1721282799558,0.291948,3425.2,3424.6,2.4309]
[1721282799859,3.017799,3425.7,3424.3,2.6101738]
[1721282800065,2.91987,3424.9,3424.3,2.6101738]
[1721282800408,10.80921,3425.6,3424.3,2.6101738]
[1721282800409,2.91989,3424.8,3424.3,2.6101738]
[1721282804179,2.91971,3425.0,3424.3,2.6101738]
[1721282804332,2.91952,3425.3,3424.3,5.5304538]
[1721282804531,2.91955,3425.2,3424.3,6.08349918]
[1721282805878,2.91955,3425.2,3424.3,6.04859918]
[1721282806834,5.83915,3425.2,3424.3,6.04859918]
[1721282807157,2.91955,3425.2,3424.3,6.04859918]
[1721282811246,2.91955,3425.2,3424.4,2.9202]
[1721282811435,2.91955,3425.2,3424.5,2.4712]
[1721282813228,2.91955,3425.2,3424.6,0.06000864]
[1721282813387,3.503443,3425.2,3424.6,0.06000864]
[1721282814429,4.339443,3425.2,3424.6,0.06000864]
[1721282816643,3.503443,3425.2,3424.6,0.06000864]
[1721282817049,2.91938,3425.4,3424.6,0.06000864]
[1721282817258,2.91938,3425.4,3424.7,3.2923]
[1721282817548,2.91938,3425.4,3424.7,3.35220201]
[1721282817763,2.91938,3425.4,3424.7,2.51620201]
[1721282817912,2.91938,3425.4,3424.7,3.14341821]
[1721282823510,7.34,3426.4,3424.7,3.76011821]
[1721282823712,2.91704,3428.2,3425.7,5.39221]
[1721282823713,2.91809,3426.9,3425.7,5.39221]
[1721282824025,2.91809,3426.9,3426.7,0.836]
[1721282824448,2.91776,3427.3,3426.7,0.836]
[1721282824656,2.91776,3427.3,3426.4,2.4731]
[1721282824657,2.91762,3427.5,3427.0,0.836]
[1721282824851,1.025762,3427.4,3427.0,0.836]
[1721282825531,1.025762,3427.4,3427.1,0.05909334]
[1721282825919,1.025762,3427.4,3427.2,0.836]
[1721282826276,0.6239883,3427.9,3427.3,2.3593]
[1721282826563,2.9171,3428.1,3427.3,2.3593]
[1721282826775,2.9174,3427.7,3427.4,0.05881789]
[1721282827119,2.9174,3427.7,3426.9,5.27738]
[1721282827321,2.9174,3427.7,3427.5,0.05875547]
[1721282827528,2.9174,3427.7,3426.9,5.27738]
[1721282827836,2.9174,3427.7,3426.9,2.3593]
[1721282828165,2.9174,3427.7,3427.0,0.05869673]
[1721282828333,2.91724,3427.9,3427.0,0.05869673]
[1721282828729,2.91707,3428.1,3427.0,0.05869673]
[1721282828948,2.91707,3428.1,3427.2,2.91782]
[1721282829147,3.500546,3428.0,3427.2,2.91782]
[1721282829354,3.500546,3428.0,3427.3,0.05872243]
[1721282829972,0.583396,3428.0,3427.3,0.05872243]
[1721282830332,2.9173,3427.9,3427.3,0.05872243]
[1721282830536,0.583396,3428.0,3427.3,0.05872243]
[1721282830739,0.3500486,3427.9,3427.3,0.05872243]
[1721282830934,0.3500486,3427.9,3427.0,2.918]
[1721282831142,0.3500486,3427.9,3427.4,0.05865268]
[1721282831359,2.91733,3427.8,3427.0,2.918]
[1721282831545,3.53577686,3427.8,3426.9,2.3593]
[1721282831949,3.53577686,3427.8,3427.0,0.05865268]
[1721282832398,2.91733,3427.8,3427.0,2.97665268]
[1721282832715,2.91718,3428.0,3427.0,2.97665268]
[1721282832941,2.91709,3428.1,3427.0,2.97665268]
[1721282834016,2.91709,3428.1,3427.0,0.05865268]
[1721282835489,2.91709,3428.1,3427.2,2.91783]
[1721282835698,3.500489,3428.1,3427.3,2.91774]
[1721282835870,3.500489,3428.1,3427.3,2.97636698]
[1721282836667,0.583399,3428.1,3427.3,2.97636698]
[1721282836996,2.917,3428.2,3427.3,2.97636698]
[1721282839104,2.9169,3428.3,3427.4,2.91763]
[1721282839456,2.9169,3428.3,3427.5,0.05806153]
[1721282840052,1.168466,3431.1,3427.5,0.05806153]
[1721282840053,2.91647,3428.8,3427.6,2.4387]
[1721282840254,0.80460181,3428.8,3427.8,2.91732]
[1721282840458,2.91608,3429.3,3428.3,2.4387]
[1721282840654,2.91562,3429.8,3428.3,2.4387]
[1721282840957,9.6564,3430.0,3428.3,2.4387]
[1721282840958,2.91588,3429.5,3428.6,2.91663]
[1721282841156,0.583158,3429.4,3428.7,0.05799546]
[1721282842171,3.499128,3429.4,3428.7,0.05799546]
[1721282843165,2.91604,3429.3,3428.7,0.05799546]
[1721282843501,2.91604,3429.3,3428.4,2.91677]
[1721282843697,2.91604,3429.3,3428.8,0.05799546]
[1721282843875,0.3499198,3429.2,3428.3,2.4387]
[1721282844069,2.91624,3429.1,3428.9,0.05799546]
[1721282844271,0.3499198,3429.2,3428.3,5.35557]
[1721282844511,2.91587,3429.5,3429.0,0.05799546]
[1721282844675,2.91587,3429.5,3428.7,2.91654]
[1721282844862,2.91587,3429.5,3429.1,0.05799546]
[1721282845062,2.91587,3429.5,3428.7,2.91654]
[1721282845289,2.91587,3429.5,3429.2,0.05799546]
[1721282845497,0.291587,3429.4,3428.7,2.91654]
[1721282845804,0.291587,3429.4,3428.8,0.05799546]
[1721282847402,2.91622,3429.1,3428.3,5.35559]
[1721282847566,2.91622,3429.1,3428.9,0.05750013]
[1721282847765,2.91622,3429.1,3428.3,5.35559]
[1721282848611,2.91622,3429.1,3428.4,0.05750013]
[1721282848812,2.91596,3429.4,3428.5,2.91665]
[1721282848985,2.91596,3429.4,3428.5,2.97383458]
[1721282850612,2.91579,3429.6,3428.5,2.97383458]
[1721282850925,2.91606,3429.3,3428.5,2.97383458]
[1721282851293,4.54196,3429.8,3428.5,2.97383458]
[1721282851294,2.9163,3429.0,3428.5,0.05718458]
[1721282851499,2.9163,3429.0,3428.3,2.4387]
[1721282851702,2.9163,3429.0,3428.6,0.05714057]
[1721282852015,2.9163,3429.0,3428.7,0.05714057]
[1721282852211,2.9163,3429.0,3428.3,2.4387]
[1721282852380,2.9163,3429.0,3428.8,0.05714057]
[1721282852581,3.744983,3429.0,3428.3,2.4387]
[1721282852781,2.9163,3429.0,3428.4,0.05718458]
[1721282853599,2.91613,3429.2,3428.4,0.05718458]
[1721282854478,2.42,3429.6,3428.4,0.05718458]
[1721282854479,2.91604,3429.3,3428.4,0.05718458]
[1721282854680,2.91604,3429.3,3428.3,5.35557]
[1721282854875,2.91604,3429.3,3428.5,0.05718458]
[1721282855081,2.91604,3429.3,3428.3,5.891127]
[1721282855301,2.91604,3429.3,3428.6,0.05718458]
[1721282855481,2.91604,3429.3,3428.3,5.891127]
[1721282855693,2.91604,3429.3,3428.7,0.05718458]
[1721282855894,0.291604,3429.2,3428.3,5.35557]
[1721282856113,2.9158,3429.6,3428.8,0.05718458]
[1721282856422,2.9158,3429.6,3428.6,2.91663]
[1721282856423,2.9158,3429.6,3428.9,0.05718458]
[1721282856725,2.9158,3429.6,3428.6,2.91663]
[1721282857197,1.488196,3429.7,3428.7,2.97372458]
[1721282857721,1.488196,3429.7,3428.8,2.4632]
[1721282857722,2.91589,3429.5,3428.8,2.4632]
[1721282858117,2.91589,3429.5,3428.9,0.05721762]
[1721282858704,2.91553,3429.9,3428.9,0.05721762]
[1721282858924,2.91553,3429.9,3429.1,2.91619]
[1721282859127,2.91553,3429.9,3429.2,2.91612]
[1721282859128,0.58309,3429.9,3429.2,2.91612]
[1721282859331,2.91537,3430.1,3429.3,2.3974]
[1721282859515,2.3823,3430.4,3429.4,2.91595]
[1721282859516,2.91528,3430.2,3429.4,2.91595]